[Event "Sautron op 14th"]
[Site "Sautron"]
[Date "2014.10.25"]
[Round "8"]
[White "Maiorov, Nikita"]
[Black "Lagarde, Maxime"]
[Result "1/2-1/2"]
[ECO "D14"]
[WhiteElo "2583"]
[BlackElo "2566"]
[Annotator "RR"]
[PlyCount "50"]
[EventDate "2014.10.26"]
[EventType "swiss"]
[EventRounds "9"]
[EventCountry "FRA"]
[SourceTitle "EXT 2015"]
[Source "ChessBase"]
[SourceDate "2014.11.20"]
[SourceVersion "1"]
[SourceVersionDate "2014.11.20"]
[SourceQuality "1"]
[TimeControl "40/5400+30:1800+30"]
[WhiteClock "1:00:24"]
[BlackClock "1:22:26"]

1. d4 {[%emt 0:00:00]} d5 {[%emt 0:00:00]} 2. c4 {[%emt 0:00:07]} c6 {[%emt 0:
00:12]} 3. cxd5 {[%emt 0:00:05]} cxd5 {[%emt 0:00:02]} 4. Nf3 {[%emt 0:00:07]}
Nf6 {[%emt 0:00:07]} 5. Nc3 {[%emt 0:00:03]} Nc6 {[%emt 0:00:03]} 6. Bf4 {
[%emt 0:00:03]} Bf5 {[%emt 0:00:06]} (6... e6) 7. e3 {[%emt 0:00:04]} e6 {
[%emt 0:00:03]} 8. Bd3 {[%emt 0:00:04]} (8. Bb5) (8. Qb3) 8... Bxd3 {[%emt 0:
00:02]} 9. Qxd3 {[%emt 0:00:04]} Bd6 {[%emt 0:00:08]} 10. Bxd6 {[%emt 0:00:03]}
Qxd6 {[%emt 0:00:06]} 11. O-O {[%emt 0:00:04]} O-O {[%emt 0:00:05]} 12. Rac1 {
[%emt 0:01:31]} Rfc8 {[%emt 0:00:37]} (12... Rac8) 13. h3 {[%emt 0:00:35]} h6 {
[%emt 0:00:28]} 14. Qe2 $146 {[%emt 0:01:25]} (14. Na4 Rc7 15. Nc3 a6 16. Na4
Nd7 17. Nc5 Nxc5 18. Rxc5 Rac8 19. Rfc1 Nb8 20. Rxc7 Rxc7 21. Rc3 Rxc3 22. Qxc3
Qc6 23. Qxc6 Nxc6 24. Ne1 Kf8 25. Nd3 b6 26. Kf1 Ke7 27. Ke2 Kd6 28. h4 a5 29.
Nf4 g5 30. hxg5 hxg5 31. Nd3 f5 32. g3 Kd7 33. Kd2 Kd6 34. Ke2 b5 35. Kd2 g4
36. a3 Kd7 37. Ke2 Kd6 38. Kd2 Kd7 39. Kc3 {1/2-1/2 (41) Kovalenko,I (2596)
-Kuzubov,Y (2615) Voronezh 2013}) 14... Ne7 {[%emt 0:07:34]} 15. Qd3 {[%emt 0:
11:56]} Nc6 $11 {[%emt 0:02:20]} 16. Qe2 {[%emt 0:06:06]} Ne7 {[%emt 0:00:20]}
17. Qd3 {[%emt 0:10:20]} Nc6 {[%emt 0:02:09]} 18. Qe2 {[%emt 0:00:33]} Ne7 {
[%emt 0:00:04]} 19. Qd3 {[%emt 0:00:14]} Nc6 {[%emt 0:00:04]} 20. Qe2 {[%emt 0:
05:12]} Ne7 {[%emt 0:03:20]} 21. Qd3 {[%emt 0:02:01]} Nc6 {[%emt 0:01:37]} 22.
Qe2 {[%emt 0:00:45]} Ne7 {[%emt 0:00:02]} 23. Qd3 {[%emt 0:00:10]} Nc6 {
[%emt 0:00:03]} 24. Qe2 {[%emt 0:00:06]} Ne7 {[%emt 0:00:02]} 25. Qd3 {[%emt 0:
00:28]} Nc6 1/2-1/2